fUSD/lending_fUSD_20250523
["ID","MTS","AMOUNT","RATE_DAILY","PERIOD"]
[362112721,1748002277793,-420.0,0.00027808,4]
[362112722,1748002277803,-447.0,0.00027808,4]
[362112723,1748002277814,-420.0,0.00027808,4]
[362112724,1748002277824,-187.79,0.00027808,4]
[362112725,1748002277833,-420.0,0.00027808,4]
[362112726,1748002277845,-361.12,0.00027808,4]
[362112727,1748002277856,-420.0,0.00027808,4]
[362112728,1748002277865,-719.56,0.00027808,4]
[362112729,1748002277876,-420.0,0.00027808,4]
[362112730,1748002277886,-420.0,0.00027808,4]
[362112731,1748002277896,-420.0,0.00027808,4]
[362112732,1748002277906,-420.0,0.00027808,4]
[362112733,1748002277916,-420.0,0.00027808,4]
[362112734,1748002277925,-420.0,0.00027808,4]
[362112735,1748002277935,-380.71,0.00027808,4]
[362112736,1748002277945,-420.0,0.00027808,4]
[362112737,1748002277955,-158.39,0.00027808,4]
[362112738,1748002277964,-420.0,0.00027808,4]
[362112739,1748002277974,-420.0,0.00027808,4]
[362112740,1748002277984,-420.0,0.00027808,4]
[362112741,1748002277995,-420.0,0.00027808,4]
[362112742,1748002278004,-420.0,0.00027808,4]
[362112743,1748002278014,-420.0,0.00027808,4]
[362112744,1748002278023,-423.4314077,0.00027808,4]
[362112745,1748002278035,-363.79,0.00027808,4]
[362112746,1748002278046,-1548.3,0.00027808,2]
[362112747,1748002278058,-420.0,0.00027808,4]
[362112748,1748002278067,-229.54,0.00027808,4]
[362112749,1748002278077,-586.0,0.00027808,4]
[362112750,1748002278086,-7122.89,0.00027808,4]
[362112751,1748002278095,-420.0,0.00027808,4]
[362112752,1748002278105,-420.0,0.00027808,4]
[362112753,1748002278115,-420.0,0.00027808,4]
[362112754,1748002278125,-420.0,0.00027808,4]
[362112755,1748002278135,-420.0,0.00027808,4]
[362112756,1748002278145,-420.0,0.00027808,4]
[362112757,1748002278155,-420.0,0.00027808,4]
[362112758,1748002278164,-420.0,0.00027808,4]
[362112759,1748002278174,-420.0,0.00027808,4]
[362112760,1748002278184,-420.0,0.00027808,4]
[362112761,1748002278194,-420.0,0.00027808,4]
[362112762,1748002278204,-420.0,0.00027808,4]
[362112763,1748002278213,-420.0,0.00027808,4]
[362112764,1748002278223,-420.0,0.00027808,4]
[362112765,1748002278233,-420.0,0.00027808,4]
[362112766,1748002278243,-399.84,0.00027808,4]
[362112767,1748002278253,-420.0,0.00027808,4]
[362112768,1748002278262,-420.0,0.00027808,4]
[362112769,1748002278271,-420.0,0.00027808,4]
[362112770,1748002278281,-420.0,0.00027808,4]
[362112771,1748002278291,-508.80629289,0.00027808,4]
[362112772,1748002278301,-420.0,0.00027808,4]
[362112773,1748002278310,-420.0,0.00027808,4]
[362112774,1748002278320,-420.0,0.00027808,2]
[362112775,1748002278330,-420.0,0.00027808,4]
[362112776,1748002278340,-420.0,0.00027808,4]
[362112777,1748002278350,-328.43,0.00027808,4]
[362112778,1748002278359,-420.0,0.00027808,4]
[362112779,1748002278369,-420.0,0.00027808,4]
[362112780,1748002278378,-420.0,0.00027808,4]
[362112781,1748002278388,-420.0,0.00027808,4]
[362112782,1748002278397,-420.0,0.00027808,4]
[362112783,1748002278407,-420.0,0.00027808,4]
[362112784,1748002278416,-396.531783,0.00027808,4]
[362112785,1748002278426,-1068.14,0.00027808,4]
[362112786,1748002278435,-205.47,0.00027808,4]
[362112787,1748002278445,-324.68971018,0.00027808,4]
[362112788,1748002278455,-420.0,0.00027808,4]
[362112789,1748002278464,-504.92,0.00027808,4]
[362112790,1748002278473,-420.0,0.00027808,4]
[362112791,1748002278484,-420.0,0.00027808,4]
[362112792,1748002278493,-420.0,0.00027808,4]
[362112793,1748002278503,-420.0,0.00027808,4]
[362112794,1748002278513,-420.0,0.00027808,4]
[362112795,1748002278522,-420.0,0.00027808,4]
[362112796,1748002278532,-425.95606911,0.00027808,4]
[362112797,1748002278542,-420.0,0.00027808,4]
[362112798,1748002278552,-281.0795355,0.00027808,4]
[362112799,1748002278561,-636.93,0.00027808,4]
[362112800,1748002278571,-428.79284174,0.00027808,4]
[362112801,1748002278580,-420.0,0.00027808,4]
[362112802,1748002278589,-420.0,0.00027808,4]
[362112803,1748002278600,-420.0,0.00027808,4]
[362112804,1748002278609,-531.79660377,0.00027808,4]
[362112805,1748002278619,-420.0,0.00027808,4]
[362112806,1748002278629,-420.0,0.00027808,4]
[362112807,1748002278638,-420.0,0.00027808,4]
[362112808,1748002278648,-372.47905585,0.00027808,4]
[362112809,1748002278657,-420.0,0.00027808,4]
[362112810,1748002278667,-429.1318345,0.00027808,4]
[362112811,1748002278676,-222.926913,0.00027808,4]
[362112812,1748002278685,-1034.39,0.00027808,4]
[362112813,1748002278694,-420.0,0.00027808,4]
[362112814,1748002278704,-420.0,0.00027808,4]
[362112815,1748002278713,-150.22,0.00027808,4]
[362112816,1748002278723,-420.0,0.00027808,2]
[362112817,1748002278732,-745.56,0.00027808,4]
[362112818,1748002278744,-420.0,0.00027808,4]
[362112819,1748002278757,-507.18687838,0.00027808,4]
[362112820,1748002278766,-420.0,0.00027808,4]
[362112821,1748002278777,-427.75046699,0.00027808,4]
[362112822,1748002278790,-420.0,0.00027808,4]
[362112823,1748002278800,-150.0,0.0002781,2]
[362112824,1748002278810,-150.0,0.00027813,2]
[362112825,1748002278819,-150.0,0.00027819,2]
[362112826,1748002278830,-1000.0,0.00027827,2]
[362112827,1748002278840,-150.0,0.00027832,2]
[362112828,1748002278850,-150.0,0.00027836,2]
[362112829,1748002278860,-150.0,0.00027839,2]
[362112830,1748002278869,-150.0,0.0002784,2]
[362112831,1748002278879,-150.0,0.00027842,2]
[362112832,1748002278889,-150.0,0.00027846,2]
[362112833,1748002278899,-150.0,0.00027856,2]
[362112834,1748002278908,-150.0,0.00027858,2]
[362112835,1748002278918,-150.0,0.00027858,2]
[362112836,1748002278927,-150.0,0.00027862,2]
[362112837,1748002278937,-164.0,0.00027863,2]
[362112838,1748002278947,-150.0,0.00027873,2]
[362112839,1748002278957,-150.0,0.00027883,2]
[362112840,1748002278967,-235.02148155,0.00027885,2]
[362112841,1748002278978,-150.0,0.00027886,2]
[362112842,1748002278987,-150.0,0.0002789,2]
[362112843,1748002278999,-150.0,0.00027894,2]
[362112844,1748002279009,-150.0,0.00027896,2]
[362112845,1748002279018,-150.0,0.00027897,2]
[362112846,1748002279028,-500.0,0.00027899,4]
[362112847,1748002279037,-14985.6,0.000279,7]
[362112848,1748002279047,-3811.131,0.000279,18]
[362112849,1748002279057,-349.121,0.000279,18]
[362112850,1748002279067,-4700.0,0.000279,10]
[362112851,1748002279076,-237.0,0.000279,2]
[362112852,1748002279085,-150.0,0.00027901,2]
[362112853,1748002279095,-150.0,0.00027902,2]
[362112854,1748002279104,-12310.3962256,0.00027907,2]
[362112855,1748002279113,-5045.1707926,0.00027907,2]
[362112856,1748002279123,-150.0,0.00027912,2]
[362112857,1748002279132,-150.0,0.00027915,2]
[362112858,1748002279142,-190.94935954,0.00027916,2]
[362112859,1748002279151,-150.0,0.0002792,2]
[362112860,1748002279160,-556.26501701,0.00027921,5]
[362112861,1748002279170,-986.89941062,0.00027921,5]
[362112862,1748002279179,-500.0,0.00027921,5]
[362112863,1748002279190,-150.0,0.00027924,2]
[362112864,1748002279201,-150.0,0.00027925,2]
[362112865,1748002279211,-1492.5702457,0.00027926,2]
[362112866,1748002279220,-153868.0764969,0.00027926,2]
[362112867,1748002279230,-150.0,0.0002793,2]
[362112868,1748002279239,-150.0,0.00027931,2]
[362112869,1748002279251,-151.0,0.00027932,7]
[362112870,1748002279260,-296.829107,0.00027932,7]
[362112871,1748002279270,-150.0,0.00027933,2]
[362112872,1748002279280,-150.0,0.00027938,2]
[362112873,1748002279290,-420.0,0.00027938,2]
[362112874,1748002279300,-180.0,0.00027938,2]
[362112875,1748002279310,-150.0,0.0002794,2]
[362112876,1748002279319,-500.0,0.00027944,2]
[362112877,1748002279329,-150.0,0.00027944,2]
[362112878,1748002279339,-350.76,0.00027944,4]
[362112879,1748002279349,-420.0,0.00027945,4]
[362112880,1748002279359,-420.0,0.00027945,4]
[362112881,1748002279368,-420.0,0.00027945,4]
[362112882,1748002279378,-229.19911485,0.00027945,4]
[362112883,1748002279388,-420.0,0.00027945,4]
[362112884,1748002279398,-420.0,0.00027945,4]
[362112885,1748002279407,-420.0,0.00027945,4]
[362112886,1748002279416,-420.0,0.00027945,4]
[362112887,1748002279425,-420.0,0.00027945,4]
[362112888,1748002279435,-420.0,0.00027945,4]
[362112889,1748002279445,-420.0,0.00027945,4]
[362112890,1748002279454,-420.0,0.00027945,4]
[362112891,1748002279464,-420.0,0.00027945,4]
[362112892,1748002279474,-420.0,0.00027945,4]
[362112893,1748002279483,-420.0,0.00027945,4]
[362112894,1748002279495,-420.0,0.00027945,4]
[362112895,1748002279505,-420.0,0.00027945,4]
[362112896,1748002279515,-420.0,0.00027945,4]
[362112897,1748002279524,-420.0,0.00027945,4]
[362112898,1748002279534,-420.0,0.00027945,4]
[362112899,1748002279544,-420.0,0.00027945,4]
[362112900,1748002279554,-162.62412424,0.00027945,4]
[362112901,1748002279564,-394.73,0.00027945,4]
[362112902,1748002279574,-153.68,0.00027945,4]
[362112903,1748002279584,-420.0,0.00027945,4]
[362112904,1748002279594,-279.52998234,0.00027945,4]
[362112905,1748002279604,-420.0,0.00027945,4]
[362112906,1748002279614,-420.0,0.00027945,4]
[362112907,1748002279623,-420.0,0.00027945,4]
[362112908,1748002279633,-431.49920052,0.00027945,4]
[362112909,1748002279643,-420.0,0.00027945,4]
[362112910,1748002279653,-420.0,0.00027945,4]
[362112911,1748002279662,-514.08,0.00027945,4]
[362112912,1748002279673,-289.44,0.00027945,4]
[362112913,1748002279683,-341.81211446,0.00027945,4]
[362112914,1748002279692,-420.0,0.00027945,4]
[362112915,1748002279702,-420.0,0.00027945,4]
[362112916,1748002279712,-420.0,0.00027945,4]
[362112917,1748002279721,-226.68,0.00027945,4]
[362112918,1748002279731,-420.0,0.00027945,4]
[362112919,1748002279741,-420.0,0.00027945,4]
[362112920,1748002279756,-420.0,0.00027945,4]
[362112921,1748002279767,-420.0,0.00027945,4]
[362112922,1748002279779,-699.81,0.00027945,4]
[362112923,1748002279790,-204.09,0.00027945,4]
[362112924,1748002279799,-934.23,0.00027945,4]
[362112925,1748002279810,-420.0,0.00027945,4]
[362112926,1748002279820,-370.79,0.00027945,4]
[362112927,1748002279830,-477.35,0.00027945,4]
[362112928,1748002279840,-420.0,0.00027945,4]
[362112929,1748002280017,-420.0,0.00027945,4]
[362112930,1748002280029,-420.0,0.00027945,4]
[362112931,1748002280039,-420.0,0.00027945,4]
[362112932,1748002280048,-420.0,0.00027945,4]
[362112933,1748002280059,-420.0,0.00027945,4]
[362112934,1748002280069,-420.0,0.00027945,4]
[362112935,1748002280080,-240.00089451,0.00027945,4]
[362112936,1748002280090,-514.94,0.00027945,4]
[362112937,1748002280102,-420.0,0.00027945,4]
[362112938,1748002280113,-515.8,0.00027945,4]
[362112939,1748002280124,-420.0,0.00027945,4]
[362112940,1748002280135,-420.0,0.00027945,4]
[362112941,1748002280145,-530.34,0.00027945,4]
[362112942,1748002280156,-420.0,0.00027945,4]
[362112943,1748002280166,-420.0,0.00027945,4]
[362112944,1748002280177,-420.0,0.00027945,4]
[362112945,1748002280187,-420.0,0.00027945,4]
[362112946,1748002280198,-250.0,0.00027945,4]
[362112947,1748002280208,-420.0,0.00027945,4]
[362112948,1748002280218,-420.0,0.00027945,4]
[362112949,1748002280228,-420.0,0.00027945,4]
[362112950,1748002280238,-420.0,0.00027945,4]
[362112951,1748002280250,-420.0,0.00027945,4]
[362112952,1748002280260,-420.0,0.00027945,4]
[362112953,1748002280270,-420.0,0.00027945,4]
[362112954,1748002280280,-510.16,0.00027945,4]
[362112955,1748002280290,-420.0,0.00027945,4]
[362112956,1748002280300,-238.24,0.00027945,4]
[362112957,1748002280310,-420.0,0.00027945,4]
[362112958,1748002280320,-420.0,0.00027945,4]
[362112959,1748002280330,-420.0,0.00027945,4]
[362112960,1748002280339,-420.0,0.00027945,4]
[362112961,1748002280350,-289.62,0.00027945,4]
[362112962,1748002280359,-408.3,0.00027945,4]
[362112963,1748002280370,-420.0,0.00027945,4]
[362112964,1748002280379,-420.0,0.00027945,4]
[362112965,1748002280389,-269.84,0.00027945,4]
[362112966,1748002280399,-307.16,0.00027945,4]
[362112967,1748002280409,-420.0,0.00027945,4]
[362112968,1748002280419,-765.64,0.00027945,4]
[362112969,1748002280429,-290.29,0.00027945,4]
[362112970,1748002280438,-402.98,0.00027945,4]
[362112971,1748002280448,-420.0,0.00027945,4]
[362112972,1748002280458,-203.38,0.00027945,4]
[362112973,1748002280467,-420.0,0.00027945,4]
[362112974,1748002280477,-420.0,0.00027945,4]
[362112975,1748002280487,-151.0,0.00027945,7]
[362112976,1748002280500,-420.0,0.00027945,4]
[362112977,1748002280509,-420.0,0.00027945,4]
[362112978,1748002280519,-157.92,0.00027945,4]
[362112979,1748002280529,-420.0,0.00027945,4]
[362112980,1748002280539,-420.0,0.00027945,4]
[362112981,1748002280549,-470.9,0.00027945,4]
[362112982,1748002280559,-420.0,0.00027945,4]
[362112983,1748002280569,-420.0,0.00027945,4]
[362112984,1748002280579,-420.0,0.00027945,4]
[362112985,1748002280589,-323.78,0.00027945,4]
[362112986,1748002280599,-420.0,0.00027945,4]
[362112987,1748002280608,-420.0,0.00027945,4]
[362112988,1748002280618,-481.64,0.00027945,4]
[362112989,1748002280628,-420.0,0.00027945,4]
[362112990,1748002280638,-420.0,0.00027945,4]
[362112991,1748002280648,-420.0,0.00027945,4]
[362112992,1748002280657,-527.06,0.00027945,4]
[362112993,1748002280667,-420.0,0.00027945,4]
[362112994,1748002280677,-420.0,0.00027945,4]
[362112995,1748002280687,-420.0,0.00027945,4]
[362112996,1748002280697,-240.79,0.00027945,4]
[362112997,1748002280707,-230.02750691,0.00027945,4]
[362112998,1748002280716,-420.0,0.00027945,4]
[362112999,1748002280726,-420.0,0.00027945,4]
[362113000,1748002280736,-420.0,0.00027945,4]
[362113001,1748002280749,-420.0,0.00027945,4]
[362113002,1748002280763,-310.06,0.00027945,4]
[362113003,1748002280772,-163.58,0.00027945,4]
[362113004,1748002280783,-420.0,0.00027945,4]
[362113005,1748002280794,-420.0,0.00027945,4]
[362113006,1748002280806,-420.0,0.00027945,4]
[362113007,1748002280816,-420.0,0.00027945,4]
[362113008,1748002280826,-420.0,0.00027945,4]
[362113009,1748002280838,-420.0,0.00027945,4]
[362113010,1748002280849,-420.0,0.00027945,4]
[362113011,1748002280859,-189.64,0.00027945,4]
[362113012,1748002280870,-420.0,0.00027945,4]
[362113013,1748002280880,-420.0,0.00027945,4]
[362113014,1748002280891,-420.0,0.00027945,4]
[362113015,1748002280901,-420.0,0.00027945,4]
[362113016,1748002280911,-420.0,0.00027945,4]
[362113017,1748002280921,-420.0,0.00027945,4]
[362113018,1748002280931,-563.27395126,0.00027945,4]
[362113019,1748002280942,-420.0,0.00027945,4]
[362113020,1748002280952,-420.0,0.00027945,4]
[362113021,1748002280963,-243.88100997,0.00027945,4]
[362113022,1748002280973,-420.0,0.00027945,4]
[362113023,1748002280983,-429.28,0.00027945,4]
[362113024,1748002281002,-422.36,0.00027945,4]
[362113025,1748002281012,-420.0,0.00027945,4]
[362113026,1748002281022,-420.0,0.00027945,4]
[362113027,1748002281033,-420.0,0.00027945,4]
[362113028,1748002281043,-420.0,0.00027945,4]
[362113029,1748002281054,-420.0,0.00027945,4]
[362113030,1748002281064,-420.0,0.00027945,4]
[362113031,1748002281074,-420.0,0.00027945,4]
[362113032,1748002281085,-169.7,0.00027945,4]
[362113033,1748002281095,-420.0,0.00027945,4]
[362113034,1748002281105,-420.0,0.00027945,4]
[362113035,1748002281115,-180.0,0.00027945,4]
[362113036,1748002281125,-420.0,0.00027945,4]
[362113037,1748002281135,-420.0,0.00027945,4]
[362113038,1748002281145,-420.0,0.00027945,4]
[362113039,1748002281155,-1213.63,0.00027945,4]
[362113040,1748002281165,-420.0,0.00027945,4]
[362113041,1748002281175,-420.0,0.00027945,4]
[362113042,1748002281185,-420.0,0.00027945,4]
[362113043,1748002281195,-420.0,0.00027945,4]
[362113044,1748002281205,-2301.13,0.00027945,4]
[362113045,1748002281215,-420.0,0.00027945,4]
[362113046,1748002281225,-420.0,0.00027945,4]
[362113047,1748002281234,-420.0,0.00027945,4]
[362113048,1748002281250,-2104.51,0.00027945,4]
[362113049,1748002281260,-420.0,0.00027945,4]
[362113050,1748002281270,-276.30962001,0.00027945,4]
[362113051,1748002281280,-1056.15,0.00027945,4]
[362113052,1748002281289,-420.0,0.00027945,4]
[362113053,1748002281299,-420.0,0.00027945,4]
[362113054,1748002281309,-420.0,0.00027945,4]
[362113055,1748002281321,-420.0,0.00027945,4]
[362113056,1748002281331,-1235.93,0.00027945,4]
[362113057,1748002281340,-420.0,0.00027945,4]
[362113058,1748002281350,-420.0,0.00027945,4]
[362113059,1748002281360,-420.0,0.00027945,4]
[362113060,1748002281370,-420.0,0.00027945,4]
[362113061,1748002281379,-420.0,0.00027945,4]
[362113062,1748002281389,-420.0,0.00027945,4]
[362113063,1748002281399,-820.55,0.00027945,4]
[362113064,1748002281409,-420.0,0.00027945,4]
[362113065,1748002281418,-2942.65,0.00027945,4]
[362113066,1748002281427,-420.0,0.00027945,4]
[362113067,1748002281438,-3091.64,0.00027945,4]
[362113068,1748002281447,-420.0,0.00027945,4]
[362113069,1748002281457,-420.0,0.00027945,4]
[362113070,1748002281467,-420.0,0.00027945,4]
[362113071,1748002281476,-420.0,0.00027945,4]
[362113072,1748002281486,-824.71,0.00027945,4]
[362113073,1748002281497,-1143.69,0.00027945,2]
[362113074,1748002281507,-420.0,0.00027945,4]
[362113075,1748002281517,-420.0,0.00027945,4]
[362113076,1748002281527,-589.55,0.00027945,4]
[362113077,1748002281537,-930.62,0.00027945,4]
[362113078,1748002281547,-420.0,0.00027945,4]
[362113079,1748002281556,-420.0,0.00027945,4]
[362113080,1748002281566,-273.75,0.00027945,4]
[362113081,1748002281575,-420.0,0.00027945,4]
[362113082,1748002281585,-420.0,0.00027945,4]
[362113083,1748002281595,-420.0,0.00027945,4]
[362113084,1748002281606,-1759.35,0.00027945,4]
[362113085,1748002281616,-420.0,0.00027945,4]
[362113086,1748002281626,-420.0,0.00027945,4]
[362113087,1748002281636,-245.00115856,0.00027945,4]
[362113088,1748002281647,-420.0,0.00027945,4]
[362113089,1748002281656,-420.0,0.00027945,4]
[362113090,1748002281666,-267.54,0.00027945,4]
[362113091,1748002281676,-420.0,0.00027945,4]
[362113092,1748002281686,-364.61,0.00027945,4]
[362113093,1748002281695,-420.0,0.00027945,4]
[362113094,1748002281705,-420.0,0.00027945,4]
[362113095,1748002281715,-420.0,0.00027945,4]
[362113096,1748002281726,-305.42,0.00027945,4]
[362113097,1748002281736,-420.0,0.00027945,4]
[362113098,1748002281749,-420.0,0.00027945,4]
[362113099,1748002281759,-420.0,0.00027945,4]
[362113100,1748002281772,-420.0,0.00027945,4]
[362113101,1748002281782,-420.0,0.00027945,4]
[362113102,1748002281792,-420.0,0.00027945,4]
[362113103,1748002281803,-420.0,0.00027945,4]
[362113104,1748002281814,-420.0,0.00027945,4]
[362113105,1748002281824,-420.0,0.00027945,4]
[362113106,1748002281834,-420.0,0.00027945,4]
[362113107,1748002281846,-420.0,0.00027945,4]
[362113108,1748002281856,-420.0,0.00027945,4]
[362113109,1748002281866,-420.0,0.00027945,4]
[362113110,1748002281876,-494.39,0.00027945,4]
[362113111,1748002281886,-2941.71,0.00027945,4]
[362113112,1748002281896,-737.93,0.00027945,4]
[362113113,1748002281906,-420.0,0.00027945,4]
[362113114,1748002281917,-420.0,0.00027945,4]
[362113115,1748002281927,-420.0,0.00027945,4]
[362113116,1748002281936,-420.0,0.00027945,4]
[362113117,1748002281946,-420.0,0.00027945,4]
[362113118,1748002281955,-420.0,0.00027945,4]
[362113119,1748002281965,-420.0,0.00027945,4]
[362113120,1748002281975,-420.0,0.00027945,4]
[362113121,1748002281985,-420.0,0.00027945,4]
[362113122,1748002281998,-252.63,0.00027945,4]
[362113123,1748002282008,-420.0,0.00027945,4]
[362113124,1748002282018,-420.0,0.00027945,4]
[362113125,1748002282028,-420.0,0.00027945,4]
[362113126,1748002282038,-420.0,0.00027945,4]
[362113127,1748002282048,-719.56,0.00027945,4]
[362113128,1748002282058,-420.0,0.00027945,4]
[362113129,1748002282068,-420.0,0.00027945,4]
[362113130,1748002282078,-173.78,0.00027945,4]
[362113131,1748002282088,-420.0,0.00027945,4]
[362113132,1748002282098,-420.0,0.00027945,4]
[362113133,1748002282107,-420.0,0.00027945,4]
[362113134,1748002282117,-420.0,0.00027945,4]
[362113135,1748002282126,-420.0,0.00027945,4]
[362113136,1748002282136,-420.0,0.00027945,4]
[362113137,1748002282145,-420.0,0.00027945,4]
[362113138,1748002282155,-420.0,0.00027945,4]
[362113139,1748002282164,-1548.3,0.00027945,2]
[362113140,1748002282174,-586.0,0.00027945,4]
[362113141,1748002282184,-420.0,0.00027945,4]
[362113142,1748002282193,-7122.89,0.00027945,4]
[362113143,1748002282203,-420.0,0.00027945,4]
[362113144,1748002282212,-420.0,0.00027945,4]
[362113145,1748002282221,-265.19280251,0.00027945,4]
[362113146,1748002282231,-420.0,0.00027945,4]
[362113147,1748002282241,-445.86,0.00027945,4]
[362113148,1748002282254,-420.0,0.00027945,4]
[362113149,1748002282264,-420.0,0.00027945,4]
[362113150,1748002282274,-420.0,0.00027945,4]
[362113151,1748002282283,-420.0,0.00027945,4]
[362113152,1748002282294,-342.81554547,0.00027945,4]
[362113153,1748002282303,-420.0,0.00027945,4]
[362113154,1748002282314,-420.0,0.00027945,4]
[362113155,1748002282323,-420.0,0.00027945,4]
[362113156,1748002282333,-194.86,0.00027945,4]
[362113157,1748002282342,-420.0,0.00027945,4]
[362113158,1748002282351,-420.0,0.00027945,4]
[362113159,1748002282361,-420.0,0.00027945,4]
[362113160,1748002282371,-420.0,0.00027945,4]
[362113161,1748002282380,-376.22,0.00027945,4]
[362113162,1748002282390,-420.0,0.00027945,4]
[362113163,1748002282399,-420.0,0.00027945,2]
[362113164,1748002282409,-420.0,0.00027945,4]
[362113165,1748002282418,-420.0,0.00027945,4]
[362113166,1748002282427,-315.9,0.00027945,4]
[362113167,1748002282437,-420.0,0.00027945,4]
[362113168,1748002282446,-420.0,0.00027945,4]
[362113169,1748002282455,-420.0,0.00027945,4]
[362113170,1748002282465,-420.0,0.00027945,4]
[362113171,1748002282475,-420.0,0.00027945,4]
[362113172,1748002282484,-396.531783,0.00027945,4]
[362113173,1748002282494,-1068.14,0.00027945,4]
[362113174,1748002282551,-420.0,0.00027945,4]
[362113175,1748002282563,-420.0,0.00027945,4]
[362113176,1748002282573,-420.0,0.00027945,4]
[362113177,1748002282582,-420.0,0.00027945,4]
[362113178,1748002282591,-420.0,0.00027945,4]
[362113179,1748002282600,-420.0,0.00027945,4]
[362113180,1748002282610,-420.0,0.00027945,4]
[362113181,1748002282619,-420.0,0.00027945,4]
[362113182,1748002282628,-636.93,0.00027945,4]
[362113183,1748002282637,-420.0,0.00027945,4]
[362113184,1748002282647,-420.0,0.00027945,4]
[362113185,1748002282657,-420.0,0.00027945,4]
[362113186,1748002282667,-420.0,0.00027945,4]
[362113187,1748002282676,-444.41306395,0.00027945,4]
[362113188,1748002282685,-420.0,0.00027945,4]
[362113189,1748002282695,-420.0,0.00027945,4]
[362113190,1748002282704,-1034.39,0.00027945,4]
[362113191,1748002282713,-222.926913,0.00027945,4]
[362113192,1748002282722,-420.0,0.00027945,4]
[362113193,1748002282731,-420.0,0.00027945,4]
[362113194,1748002282741,-420.0,0.00027945,2]
[362113195,1748002282754,-745.56,0.00027945,4]
[362113196,1748002282766,-420.0,0.00027945,4]
[362113197,1748002282776,-166.972791,0.00027945,4]
[362113198,1748002282787,-420.0,0.00027945,4]
[362113199,1748002282798,-482.06,0.00027945,4]
[362113200,1748002282808,-150.0,0.00027946,2]
[362113201,1748002282817,-150.0,0.00027946,2]
[362113202,1748002282827,-150.0,0.00027949,2]
[362113203,1748002282837,-150.0,0.00027955,2]
[362113204,1748002282848,-1000.0,0.00027956,2]
[362113205,1748002282858,-16822.0,0.00027973,2]
[362113206,1748002282868,-150.0,0.00027977,2]
[362113207,1748002282878,-10498.32057604,0.00027992,2]
[362113208,1748002282888,-65000.65583592,0.00028,2]
[362113209,1748002282898,-1009.0,0.00028,6]
[362113210,1748002282907,-151.0,0.00028,7]
[362113211,1748002282917,-421.17612736,0.00028,120]
[362113212,1748002282926,-6893.64930074,0.00028032,2]
[362113213,1748002282936,-596.75201244,0.00028072,2]
[362113214,1748002282946,-420.0,0.00028082,4]
[362113215,1748002282955,-420.0,0.00028082,4]
[362113216,1748002282965,-420.0,0.00028082,4]
[362113217,1748002282974,-420.0,0.00028082,4]
[362113218,1748002282984,-420.0,0.00028082,4]
[362113219,1748002282994,-417.4,0.00028082,4]
[362113220,1748002283008,-420.0,0.00028082,4]